fUSD/lending_fUSD_20241225
["ID","MTS","AMOUNT","RATE_DAILY","PERIOD"]
[346628867,1735131063834,-536.0,0.00011242,2]
[346628868,1735131063844,-250.0,0.00011242,2]
[346628869,1735131063855,-3887.0,0.00011242,2]
[346628870,1735131063865,-150.0,0.00011242,2]
[346628871,1735131063875,-1170.0,0.00011242,2]
[346628872,1735131063890,-155.477,0.00011242,2]
[346628873,1735131063899,-4162.0,0.00011242,2]
[346628874,1735131063908,-150.0,0.00011242,2]
[346628875,1735131063919,-825.776185,0.00011287,2]
[346628876,1735131063929,-932.494223,0.00011287,2]
[346628877,1735131063939,-534.15,0.00011292,2]
[346628878,1735131063948,-894.82,0.00011292,2]
[346628879,1735131063959,-500.0,0.00011292,2]
[346628880,1735131063970,-706.16,0.00011292,2]
[346628881,1735131063981,-2000.0,0.00011294,2]
[346628882,1735131063991,-200.0,0.00011294,2]
[346628883,1735131064000,-200.0,0.00011294,2]
[346628884,1735131064010,-200.0,0.00011294,2]
[346628885,1735131064019,-200.0,0.00011294,2]
[346628886,1735131064028,-500.0,0.00011333,2]
[346628887,1735131064038,-422.75025638,0.00011333,2]
[346628888,1735131064047,-500.0,0.00011333,2]
[346628889,1735131064057,-500.0,0.00011333,2]
[346628890,1735131064067,-500.0,0.00011333,2]
[346628891,1735131064076,-500.0,0.00011333,2]
[346628892,1735131064087,-500.0,0.00011333,2]
[346628893,1735131064097,-500.0,0.00011333,2]
[346628894,1735131064107,-500.0,0.00011333,2]
[346628895,1735131064116,-549.85,0.00011333,2]
[346628896,1735131064126,-500.0,0.00011333,2]
[346628897,1735131064136,-500.0,0.00011333,2]
[346628898,1735131064146,-500.0,0.00011333,2]
[346628899,1735131064156,-500.0,0.00011333,2]
[346628900,1735131064165,-500.0,0.00011333,2]
[346628901,1735131064174,-500.0,0.00011333,2]
[346628902,1735131064184,-500.0,0.00011333,2]
[346628903,1735131064194,-500.0,0.00011333,2]
[346628904,1735131064203,-500.0,0.00011333,2]
[346628905,1735131064213,-500.0,0.00011333,2]
[346628906,1735131064222,-500.0,0.00011333,2]
[346628907,1735131064231,-500.0,0.00011333,2]
[346628908,1735131064242,-500.0,0.00011333,2]
[346628909,1735131064251,-624.4938911,0.00011333,2]
[346628910,1735131064261,-500.0,0.00011333,2]
[346628911,1735131064271,-500.0,0.00011333,2]
[346628912,1735131064280,-541.75996325,0.00011333,2]
[346628913,1735131064291,-500.0,0.00011333,2]
[346628914,1735131064301,-500.0,0.00011333,2]
[346628915,1735131064311,-500.0,0.00011333,2]
[346628916,1735131064322,-503.1740063,0.00011333,2]
[346628917,1735131064332,-500.0,0.00011333,2]
[346628918,1735131064343,-500.0,0.00011333,2]
[346628919,1735131064354,-500.0,0.00011333,2]
[346628920,1735131064364,-500.0,0.00011333,2]
[346628921,1735131064374,-500.0,0.00011333,2]
[346628922,1735131064383,-500.0,0.00011333,2]
[346628923,1735131064393,-500.0,0.00011333,2]
[346628924,1735131064403,-201.75,0.00011333,2]
[346628925,1735131064413,-500.0,0.00011333,2]
[346628926,1735131064423,-500.0,0.00011333,2]
[346628927,1735131064433,-500.0,0.00011333,2]
[346628928,1735131064443,-631.48458613,0.00011333,2]
[346628929,1735131064452,-500.0,0.00011333,2]
[346628930,1735131064462,-500.0,0.00011333,2]
[346628931,1735131064472,-500.0,0.00011333,2]
[346628932,1735131064481,-500.0,0.00011333,2]
[346628933,1735131064491,-500.0,0.00011333,2]
[346628934,1735131064502,-500.0,0.00011333,2]
[346628935,1735131064512,-500.0,0.00011333,2]
[346628936,1735131064521,-500.0,0.00011333,2]
[346628937,1735131064531,-500.0,0.00011333,2]
[346628938,1735131064541,-500.0,0.00011333,2]
[346628939,1735131064551,-500.0,0.00011333,2]
[346628940,1735131064561,-500.0,0.00011333,2]
[346628941,1735131064570,-500.0,0.00011333,2]
[346628942,1735131064580,-500.0,0.00011333,2]
[346628943,1735131064590,-1061.03,0.00011333,2]
[346628944,1735131064601,-519.02,0.00011333,2]
[346628945,1735131064611,-500.0,0.00011333,2]
[346628946,1735131064620,-500.0,0.00011333,2]
[346628947,1735131064630,-500.0,0.00011333,2]
[346628948,1735131064639,-500.0,0.00011333,2]
[346628949,1735131064649,-500.0,0.00011333,2]
[346628950,1735131064659,-500.0,0.00011333,2]
[346628951,1735131064669,-1272.96,0.00011333,2]
[346628952,1735131064678,-500.0,0.00011333,2]
[346628953,1735131064688,-500.0,0.00011333,2]
[346628954,1735131064697,-500.0,0.00011333,2]
[346628955,1735131064707,-500.0,0.00011333,2]
[346628956,1735131064716,-500.0,0.00011333,2]
[346628957,1735131064726,-1036.35,0.00011333,2]
[346628958,1735131064737,-500.0,0.00011333,2]
[346628959,1735131064746,-500.0,0.00011333,2]
[346628960,1735131064756,-1138.98,0.00011333,2]
[346628961,1735131064765,-500.0,0.00011333,2]
[346628962,1735131064775,-500.0,0.00011333,2]
[346628963,1735131064784,-500.0,0.00011333,2]
[346628964,1735131064795,-500.0,0.00011333,2]
[346628965,1735131064805,-500.0,0.00011333,2]
[346628966,1735131064814,-500.0,0.00011333,2]
[346628967,1735131064824,-500.0,0.00011333,2]
[346628968,1735131064834,-1993.01,0.00011333,2]
[346628969,1735131064844,-500.0,0.00011333,2]
[346628970,1735131064855,-500.0,0.00011333,2]
[346628971,1735131064864,-500.0,0.00011333,2]
[346628972,1735131064877,-1131.09,0.00011333,2]
[346628973,1735131064887,-500.0,0.00011333,2]
[346628974,1735131064897,-265.44,0.00011333,2]
[346628975,1735131064906,-500.0,0.00011333,2]
[346628976,1735131064917,-5828.78,0.00011333,2]
[346628977,1735131064927,-500.0,0.00011333,2]
[346628978,1735131064937,-500.0,0.00011333,2]
[346628979,1735131064947,-500.0,0.00011333,2]
[346628980,1735131064958,-500.0,0.00011333,2]
[346628981,1735131064968,-500.0,0.00011333,2]
[346628982,1735131064978,-500.0,0.00011333,2]
[346628983,1735131064988,-577.70073631,0.00011333,2]
[346628984,1735131064998,-500.0,0.00011333,2]
[346628985,1735131065008,-585.9,0.00011333,2]
[346628986,1735131065018,-500.0,0.00011333,2]
[346628987,1735131065027,-500.0,0.00011333,2]
[346628988,1735131065037,-500.0,0.00011333,2]
[346628989,1735131065046,-3493.53,0.00011333,2]
[346628990,1735131065056,-500.0,0.00011333,2]
[346628991,1735131065065,-926.05,0.00011333,2]
[346628992,1735131065074,-500.0,0.00011333,2]
[346628993,1735131065084,-500.0,0.00011333,2]
[346628994,1735131065093,-500.0,0.00011333,2]
[346628995,1735131065161,-500.0,0.00011333,2]
[346628996,1735131065171,-500.0,0.00011333,2]
[346628997,1735131065180,-500.0,0.00011333,2]
[346628998,1735131065189,-1337.08,0.00011333,2]
[346628999,1735131065198,-500.0,0.00011333,2]
[346629000,1735131065208,-500.0,0.00011333,2]
[346629001,1735131065218,-1454.36,0.00011333,2]
[346629002,1735131065227,-500.0,0.00011333,2]
[346629003,1735131065236,-500.0,0.00011333,2]
[346629004,1735131065245,-939.02,0.00011333,2]
[346629005,1735131065254,-500.0,0.00011333,2]
[346629006,1735131065263,-606.77692346,0.00011333,2]
[346629007,1735131065273,-1046.44,0.00011333,2]
[346629008,1735131065282,-500.0,0.00011333,2]
[346629009,1735131065291,-500.0,0.00011333,2]
[346629010,1735131065300,-906.6,0.00011333,2]
[346629011,1735131065309,-500.0,0.00011333,2]
[346629012,1735131065318,-500.0,0.00011333,2]
[346629013,1735131065327,-500.0,0.00011333,2]
[346629014,1735131065336,-500.0,0.00011333,2]
[346629015,1735131065346,-500.0,0.00011333,2]
[346629016,1735131065356,-1085.74,0.00011333,2]
[346629017,1735131065366,-711.38,0.00011333,2]
[346629018,1735131065375,-500.0,0.00011333,2]
[346629019,1735131065384,-2304.52,0.00011333,2]
[346629020,1735131065393,-500.0,0.00011333,2]
[346629021,1735131065402,-500.0,0.00011333,2]
[346629022,1735131065411,-1476.07,0.00011333,2]
[346629023,1735131065421,-2368.27,0.00011333,2]
[346629024,1735131065430,-1487.9,0.00011333,2]
[346629025,1735131065439,-500.0,0.00011333,2]
[346629026,1735131065449,-500.0,0.00011333,2]
[346629027,1735131065458,-500.0,0.00011333,2]
[346629028,1735131065467,-500.0,0.00011333,2]
[346629029,1735131065476,-1190.11,0.00011333,2]
[346629030,1735131065485,-500.0,0.00011333,2]
[346629031,1735131065495,-630.37996138,0.00011333,2]
[346629032,1735131065505,-500.0,0.00011333,2]
[346629033,1735131065514,-500.0,0.00011333,2]
[346629034,1735131065523,-500.0,0.00011333,2]
[346629035,1735131065532,-500.0,0.00011333,2]
[346629036,1735131065542,-4164.09,0.00011333,2]
[346629037,1735131065550,-500.0,0.00011333,2]
[346629038,1735131065561,-500.0,0.00011333,2]
[346629039,1735131065571,-1143.51,0.00011333,2]
[346629040,1735131065580,-6765.86,0.00011333,2]
[346629041,1735131065590,-500.0,0.00011333,2]
[346629042,1735131065599,-2500.32,0.00011333,2]
[346629043,1735131065609,-3730.17,0.00011333,2]
[346629044,1735131065619,-1338.35,0.00011333,2]
[346629045,1735131065629,-500.0,0.00011333,2]
[346629046,1735131065638,-500.0,0.00011333,2]
[346629047,1735131065648,-1747.75,0.00011333,2]
[346629048,1735131065657,-367.52554089,0.00011333,2]
[346629049,1735131065667,-500.0,0.00011333,2]
[346629050,1735131065677,-500.0,0.00011333,2]
[346629051,1735131065686,-500.0,0.00011333,2]
[346629052,1735131065696,-2277.64,0.00011333,2]
[346629053,1735131065705,-500.0,0.00011333,2]
[346629054,1735131065714,-1193.19,0.00011333,2]
[346629055,1735131065723,-2786.79,0.00011333,2]
[346629056,1735131065733,-500.0,0.00011333,2]
[346629057,1735131065742,-700.74,0.00011333,2]
[346629058,1735131065751,-500.0,0.00011333,2]
[346629059,1735131065760,-500.0,0.00011333,2]
[346629060,1735131065770,-500.0,0.00011333,2]
[346629061,1735131065779,-571.82,0.00011333,2]
[346629062,1735131065788,-562.74,0.00011333,2]
[346629063,1735131065798,-1240.01,0.00011333,2]
[346629064,1735131065808,-500.0,0.00011333,2]
[346629065,1735131065818,-500.0,0.00011333,2]
[346629066,1735131065827,-500.0,0.00011333,2]
[346629067,1735131065838,-8175.99,0.00011333,2]
[346629068,1735131065847,-500.0,0.00011333,2]
[346629069,1735131065857,-948.34,0.00011333,2]
[346629070,1735131065866,-2773.89,0.00011333,2]
[346629071,1735131065876,-500.0,0.00011333,2]
[346629072,1735131065889,-500.0,0.00011333,2]
[346629073,1735131065899,-1806.95,0.00011333,2]
[346629074,1735131065908,-7135.29,0.00011333,2]
[346629075,1735131065917,-500.0,0.00011333,2]
[346629076,1735131065927,-500.0,0.00011333,2]
[346629077,1735131065936,-500.0,0.00011333,2]
[346629078,1735131065946,-575.73,0.00011333,2]
[346629079,1735131065955,-491.0,0.00011333,2]
[346629080,1735131065965,-500.0,0.00011333,2]
[346629081,1735131065976,-1295.14,0.00011333,2]
[346629082,1735131065985,-500.0,0.00011333,2]
[346629083,1735131065995,-271.84,0.00011333,2]
[346629084,1735131066004,-867.2,0.00011333,2]
[346629085,1735131066013,-254.44,0.00011333,2]
[346629086,1735131066023,-601.88,0.00011333,2]
[346629087,1735131066032,-973.69,0.00011333,2]
[346629088,1735131066042,-500.0,0.00011333,2]
[346629089,1735131066052,-500.0,0.00011333,2]
[346629090,1735131066062,-500.0,0.00011333,2]
[346629091,1735131066071,-971.02,0.00011333,2]
[346629092,1735131066080,-500.0,0.00011333,2]
[346629093,1735131066090,-500.0,0.00011333,2]
[346629094,1735131066099,-500.0,0.00011333,2]
[346629095,1735131066110,-500.0,0.00011333,2]
[346629096,1735131066121,-500.0,0.00011333,2]
[346629097,1735131066130,-500.0,0.00011333,2]
[346629098,1735131066139,-500.0,0.00011333,2]
[346629099,1735131066149,-500.0,0.00011333,2]
[346629100,1735131066158,-500.0,0.00011333,2]
[346629101,1735131066167,-5812.71,0.00011333,2]
[346629102,1735131066176,-557.56,0.00011333,2]
[346629103,1735131066185,-500.0,0.00011333,2]
[346629104,1735131066195,-500.0,0.00011333,2]
[346629105,1735131066205,-554.67456453,0.00011334,2]
[346629106,1735131066216,-500.0,0.00011334,2]
[346629107,1735131066225,-500.0,0.00011334,2]
[346629108,1735131066235,-500.0,0.00011334,2]
[346629109,1735131066244,-500.0,0.00011334,2]
[346629110,1735131066254,-500.0,0.00011334,2]
[346629111,1735131066263,-500.0,0.00011334,2]
[346629112,1735131066273,-500.0,0.00011334,2]
[346629113,1735131066283,-500.0,0.00011334,2]
[346629114,1735131066294,-500.0,0.00011334,2]
[346629115,1735131066303,-500.0,0.00011334,2]
[346629116,1735131066312,-351.75,0.00011334,2]
[346629117,1735131066322,-500.0,0.00011334,2]
[346629118,1735131066331,-500.0,0.00011334,2]
[346629119,1735131066341,-500.0,0.00011334,2]
[346629120,1735131066350,-500.0,0.00011334,2]
[346629121,1735131066360,-500.0,0.00011334,2]
[346629122,1735131066369,-500.0,0.00011334,2]
[346629123,1735131066379,-500.0,0.00011334,2]
[346629124,1735131066389,-636.23,0.00011334,2]
[346629125,1735131066398,-500.0,0.00011334,2]
[346629126,1735131066407,-500.0,0.00011334,2]
[346629127,1735131066418,-500.0,0.00011334,2]
[346629128,1735131066429,-500.0,0.00011334,2]
[346629129,1735131066438,-500.0,0.00011334,2]
[346629130,1735131066447,-600.1184008,0.00011334,2]
[346629131,1735131066457,-500.0,0.00011334,2]
[346629132,1735131066466,-500.0,0.00011334,2]
[346629133,1735131066477,-500.0,0.00011334,2]
[346629134,1735131066486,-500.0,0.00011334,2]
[346629135,1735131066495,-500.0,0.00011334,2]
[346629136,1735131066505,-500.0,0.00011334,2]
[346629137,1735131066515,-500.0,0.00011334,2]
[346629138,1735131066525,-500.0,0.00011334,2]
[346629139,1735131066535,-500.0,0.00011334,2]
[346629140,1735131066544,-500.0,0.00011334,2]
[346629141,1735131066554,-500.0,0.00011334,2]
[346629142,1735131066563,-500.0,0.00011334,2]
[346629143,1735131066573,-500.0,0.00011334,2]
[346629144,1735131066582,-500.0,0.00011334,2]
[346629145,1735131066591,-500.0,0.00011334,2]
[346629146,1735131066600,-500.0,0.00011334,2]
[346629147,1735131066610,-524.66,0.00011334,2]
[346629148,1735131066619,-500.0,0.00011334,2]
[346629149,1735131066628,-573.86,0.00011334,2]
[346629150,1735131066637,-593.19,0.00011334,2]
[346629151,1735131066646,-500.0,0.00011334,2]
[346629152,1735131066656,-500.0,0.00011334,2]
[346629153,1735131066666,-500.0,0.00011334,2]
[346629154,1735131066675,-592.57,0.00011334,2]
[346629155,1735131066684,-500.49,0.00011334,2]
[346629156,1735131066693,-500.0,0.00011334,2]
[346629157,1735131066703,-500.0,0.00011334,2]
[346629158,1735131066712,-500.0,0.00011334,2]
[346629159,1735131066721,-500.0,0.00011334,2]
[346629160,1735131066732,-500.0,0.00011334,2]
[346629161,1735131066741,-500.0,0.00011334,2]
[346629162,1735131066751,-500.0,0.00011334,2]
[346629163,1735131066760,-716.98,0.00011334,2]
[346629164,1735131066769,-500.0,0.00011334,2]
[346629165,1735131066779,-500.0,0.00011334,2]
[346629166,1735131066788,-500.0,0.00011334,2]
[346629167,1735131066797,-500.0,0.00011334,2]
[346629168,1735131066806,-500.0,0.00011334,2]
[346629169,1735131066815,-917.78,0.00011334,2]
[346629170,1735131066825,-500.0,0.00011334,2]
[346629171,1735131066834,-500.0,0.00011334,2]
[346629172,1735131066845,-755.94,0.00011334,2]
[346629173,1735131066855,-500.0,0.00011334,2]
[346629174,1735131066865,-533.52,0.00011334,2]
[346629175,1735131066877,-500.0,0.00011334,2]
[346629176,1735131066888,-500.0,0.00011334,2]
[346629177,1735131066898,-500.0,0.00011334,2]
[346629178,1735131066908,-513.96,0.00011334,2]
[346629179,1735131066919,-541.29,0.00011334,2]
[346629180,1735131066928,-500.0,0.00011334,2]
[346629181,1735131066938,-500.0,0.00011334,2]
[346629182,1735131066949,-500.0,0.00011334,2]
[346629183,1735131066960,-500.0,0.00011334,2]
[346629184,1735131066970,-500.0,0.00011334,2]
[346629185,1735131066982,-500.0,0.00011334,2]
[346629186,1735131066992,-500.0,0.00011334,2]
[346629187,1735131067002,-500.0,0.00011334,2]
[346629188,1735131067012,-775.45,0.00011334,2]
[346629189,1735131067022,-500.0,0.00011334,2]
[346629190,1735131067032,-500.0,0.00011334,2]
[346629191,1735131067042,-500.0,0.00011334,2]
[346629192,1735131067052,-500.0,0.00011334,2]
[346629193,1735131067062,-500.0,0.00011334,2]
[346629194,1735131067072,-500.0,0.00011334,2]
[346629195,1735131067083,-500.0,0.00011334,2]
[346629196,1735131067092,-500.0,0.00011334,2]
[346629197,1735131067104,-500.73,0.00011334,2]
[346629198,1735131067113,-500.0,0.00011334,2]
[346629199,1735131067123,-500.0,0.00011334,2]
[346629200,1735131067133,-500.0,0.00011334,2]
[346629201,1735131067142,-500.0,0.00011334,2]
[346629202,1735131067152,-500.0,0.00011334,2]
[346629203,1735131067162,-500.0,0.00011334,2]
[346629204,1735131067172,-500.0,0.00011334,2]
[346629205,1735131067181,-686.17,0.00011334,2]
[346629206,1735131067191,-695.13,0.00011334,2]
[346629207,1735131067200,-500.0,0.00011334,2]
[346629208,1735131067210,-500.0,0.00011334,2]
[346629209,1735131067220,-500.0,0.00011334,2]
[346629210,1735131067229,-872.26,0.00011334,2]
[346629211,1735131067239,-500.0,0.00011334,2]
[346629212,1735131067248,-500.0,0.00011334,2]
[346629213,1735131067257,-500.0,0.00011334,2]
[346629214,1735131067267,-625.65,0.00011334,2]
[346629215,1735131067276,-708.04,0.00011334,2]
[346629216,1735131067285,-691.11,0.00011334,2]
[346629217,1735131067295,-500.0,0.00011334,2]
[346629218,1735131067304,-847.95,0.00011334,2]
[346629219,1735131067313,-500.0,0.00011334,2]
[346629220,1735131067322,-500.0,0.00011334,2]
[346629221,1735131067332,-500.0,0.00011334,2]
[346629222,1735131067341,-500.0,0.00011334,2]
[346629223,1735131067353,-500.0,0.00011334,2]
[346629224,1735131067363,-500.0,0.00011334,2]
[346629225,1735131067373,-500.0,0.00011334,2]
[346629226,1735131067382,-1289.69,0.00011334,2]
[346629227,1735131067391,-388.80373237,0.00011334,2]
[346629228,1735131067400,-500.0,0.00011334,2]
[346629229,1735131067409,-500.0,0.00011334,2]
[346629230,1735131067419,-500.0,0.00011334,2]
[346629231,1735131067429,-500.0,0.00011334,2]
[346629232,1735131067438,-527.47,0.00011334,2]
[346629233,1735131067447,-500.0,0.00011334,2]
[346629234,1735131067457,-500.0,0.00011334,2]
[346629235,1735131067466,-938.04,0.00011334,2]
[346629236,1735131067476,-1005.17,0.00011334,2]
[346629237,1735131067486,-2998.66,0.00011334,2]
[346629238,1735131067495,-500.0,0.00011334,2]
[346629239,1735131067504,-2340.97,0.00011334,2]
[346629240,1735131067513,-500.0,0.00011334,2]
[346629241,1735131067523,-500.98,0.00011334,2]
[346629242,1735131067532,-807.9,0.00011334,2]
[346629243,1735131067542,-932.98,0.00011334,2]
[346629244,1735131067551,-500.0,0.00011334,2]
[346629245,1735131067560,-500.0,0.00011334,2]
[346629246,1735131067570,-500.0,0.00011334,2]
[346629247,1735131067579,-3291.47,0.00011334,2]
[346629248,1735131067588,-631.61,0.00011334,2]
[346629249,1735131067599,-4370.13,0.00011334,2]
[346629250,1735131067609,-500.0,0.00011334,2]
[346629251,1735131067619,-500.0,0.00011334,2]
[346629252,1735131067629,-500.0,0.00011334,2]
[346629253,1735131067638,-500.0,0.00011334,2]
[346629254,1735131067647,-1321.53,0.00011334,2]
[346629255,1735131067657,-500.0,0.00011334,2]
[346629256,1735131067666,-500.0,0.00011334,2]
[346629257,1735131067675,-876.87,0.00011334,2]
[346629258,1735131067685,-1670.65,0.00011334,2]
[346629259,1735131067695,-556.32,0.00011334,2]
[346629260,1735131067704,-500.0,0.00011334,2]
[346629261,1735131067713,-500.0,0.00011334,2]
[346629262,1735131067723,-500.0,0.00011334,2]
[346629263,1735131067732,-393.9,0.00011334,2]
[346629264,1735131067741,-500.0,0.00011334,2]
[346629265,1735131067751,-502.19,0.00011334,2]
[346629266,1735131067760,-1075.04,0.00011334,2]
[346629267,1735131067770,-1100.66,0.00011334,2]
[346629268,1735131067779,-708.03,0.00011334,2]
[346629269,1735131067788,-1318.34,0.00011334,2]
[346629270,1735131067797,-237.29230057,0.00011334,2]
[346629271,1735131067807,-841.72,0.00011334,2]
[346629272,1735131067816,-2751.52,0.00011334,2]
[346629273,1735131067826,-500.0,0.00011334,2]
[346629274,1735131067835,-493.06495457,0.00011334,2]
[346629275,1735131067845,-561.79,0.00011334,2]
[346629276,1735131067856,-500.0,0.00011334,2]
[346629277,1735131067866,-504.84,0.00011334,2]
[346629278,1735131067876,-500.0,0.00011334,2]
[346629279,1735131067892,-500.0,0.00011334,2]
[346629280,1735131067902,-858.87,0.00011334,2]
[346629281,1735131067912,-500.0,0.00011334,2]
[346629282,1735131067922,-1125.59,0.00011334,2]
[346629283,1735131067933,-500.0,0.00011334,2]
[346629284,1735131067943,-500.0,0.00011334,2]
[346629285,1735131067952,-500.0,0.00011334,2]
[346629286,1735131067963,-500.0,0.00011334,2]
[346629287,1735131067973,-500.0,0.00011334,2]
[346629288,1735131067985,-500.0,0.00011334,2]
[346629289,1735131067995,-646.12,0.00011334,2]
[346629290,1735131068004,-500.0,0.00011334,2]
[346629291,1735131068013,-500.0,0.00011334,2]
[346629292,1735131068023,-332.16448212,0.00011334,2]
[346629293,1735131068032,-990.62,0.00011334,2]
[346629294,1735131068041,-500.0,0.00011334,2]
[346629295,1735131068051,-563.25,0.00011334,2]
[346629296,1735131068060,-500.0,0.00011334,2]
[346629297,1735131068070,-1291.71,0.00011334,2]
[346629298,1735131068079,-500.0,0.00011334,2]
[346629299,1735131068089,-1034.76,0.00011334,2]
[346629300,1735131068099,-500.0,0.00011334,2]
[346629301,1735131068107,-500.0,0.00011334,2]
[346629302,1735131068117,-736.53,0.00011334,2]
[346629303,1735131068126,-500.0,0.00011334,2]
[346629304,1735131068136,-500.0,0.00011334,2]
[346629305,1735131068145,-500.0,0.00011335,2]
[346629306,1735131068155,-500.0,0.00011335,2]
[346629307,1735131068165,-500.0,0.00011335,2]
[346629308,1735131068174,-500.0,0.00011335,2]
[346629309,1735131068183,-513.50651016,0.00011335,2]
[346629310,1735131068193,-500.0,0.00011335,2]
[346629311,1735131068203,-500.0,0.00011335,2]
[346629312,1735131068212,-500.0,0.00011335,2]
[346629313,1735131068222,-500.0,0.00011335,2]
[346629314,1735131068231,-500.0,0.00011335,2]
[346629315,1735131068240,-500.0,0.00011335,2]
[346629316,1735131068250,-504.61052577,0.00011335,2]
[346629317,1735131068259,-500.0,0.00011335,2]
[346629318,1735131068268,-500.0,0.00011335,2]
[346629319,1735131068278,-500.0,0.00011335,2]
[346629320,1735131068287,-500.0,0.00011335,2]
[346629321,1735131068296,-500.0,0.00011335,2]
[346629322,1735131068305,-500.0,0.00011335,2]
[346629323,1735131068315,-500.0,0.00011335,2]
[346629324,1735131068324,-303.62,0.00011335,2]
[346629325,1735131068333,-500.0,0.00011335,2]
[346629326,1735131068343,-430.53798321,0.00011335,2]
[346629327,1735131068354,-500.0,0.00011335,2]
[346629328,1735131068363,-500.0,0.00011335,2]
[346629329,1735131068373,-500.0,0.00011335,2]
[346629330,1735131068382,-500.0,0.00011335,2]
[346629331,1735131068392,-500.0,0.00011335,2]
[346629332,1735131068401,-500.0,0.00011335,2]
[346629333,1735131068411,-547.7,0.00011335,2]
[346629334,1735131068420,-500.0,0.00011335,2]
[346629335,1735131068430,-500.0,0.00011335,2]
[346629336,1735131068439,-500.0,0.00011335,2]
[346629337,1735131068449,-500.0,0.00011335,2]
[346629338,1735131068458,-500.0,0.00011335,2]
[346629339,1735131068468,-500.0,0.00011335,2]
[346629340,1735131068477,-500.0,0.00011335,2]
[346629341,1735131068487,-503.86,0.00011335,2]
[346629342,1735131068496,-500.0,0.00011335,2]
[346629343,1735131068506,-500.0,0.00011335,2]
[346629344,1735131068515,-500.0,0.00011335,2]
[346629345,1735131068525,-500.0,0.00011335,2]
[346629346,1735131068535,-500.0,0.00011335,2]
[346629347,1735131068545,-500.0,0.00011335,2]
[346629348,1735131068555,-500.0,0.00011335,2]
[346629349,1735131068564,-500.0,0.00011335,2]
[346629350,1735131068574,-500.0,0.00011335,2]
[346629351,1735131068584,-500.0,0.00011335,2]
[346629352,1735131068594,-503.36,0.00011335,2]
[346629353,1735131068605,-500.0,0.00011335,2]
[346629354,1735131068614,-500.0,0.00011335,2]
[346629355,1735131068624,-500.0,0.00011335,2]
[346629356,1735131068635,-500.0,0.00011335,2]
[346629357,1735131068645,-500.0,0.00011335,2]
[346629358,1735131068655,-500.0,0.00011335,2]
[346629359,1735131068665,-500.0,0.00011335,2]
[346629360,1735131068675,-500.0,0.00011335,2]
[346629361,1735131068684,-500.0,0.00011335,2]
[346629362,1735131068694,-500.0,0.00011335,2]
[346629363,1735131068704,-591.38,0.00011335,2]
[346629364,1735131068714,-500.0,0.00011335,2]
[346629365,1735131068724,-449.99394256,0.00011335,2]
[346629366,1735131068734,-500.0,0.00011335,2]